bitfinex/quotes_ETHUSD_20220101
["timestamp","ask_amount","ask_price","bid_price","bid_amount"]
[1641063934578,0.00170527,3756.4,3756.3,2.29662]
[1641063938349,0.00170527,3756.4,3756.3,1.99662]
[1641063938649,0.00378607,3756.4,3756.3,1.99662]
[1641063939448,0.00378607,3756.4,3756.3,2.02834229]
[1641063940649,0.00378607,3756.4,3756.3,2.32834229]
[1641063941877,0.00378607,3756.4,3756.3,1.66280229]
[1641063943585,0.00378607,3756.4,3756.3,1.61280229]
[1641063943784,0.00378607,3756.4,3756.3,1.36280229]
[1641063943984,0.00378607,3756.4,3756.3,3.64968869]
[1641063944185,0.00378607,3756.4,3756.3,3.94968869]
[1641063944386,1.35464779,3756.8,3756.3,20.54968869]
[1641063944585,1.35464779,3756.8,3756.4,8.34833]
[1641063944790,3.8461,3757.9,3756.4,8.34833]
[1641063944791,0.40388992,3758.0,3756.8,15.6]
[1641063944987,0.40388992,3758.0,3757.0,15.6]
[1641063944988,1.81443848,3757.5,3757.0,15.6]
[1641063945186,1.33279711,3757.8,3757.2,6.3]
[1641063945387,1.33279711,3757.8,3757.4,0.6652221]
[1641063945634,0.4044419,3758.2,3757.5,6.3]
[1641063945832,0.4044419,3758.2,3757.9,0.66515]
[1641063946033,0.00170527,3758.0,3757.9,1.91515]
[1641063946236,0.00170527,3758.0,3757.9,2.78632675]
[1641063946431,0.00170527,3758.0,3757.9,3.08632675]
[1641063946837,0.00170527,3758.0,3757.9,3.2757265]
[1641063947038,0.00170527,3758.0,3757.5,0.00113685]
[1641063947435,0.00113684,3757.9,3757.1,0.00341054]
[1641063947640,0.00113684,3757.9,3756.8,0.00511581]
[1641063947837,0.66548,3757.7,3756.8,0.00511581]
[1641063948241,0.66548,3757.7,3756.8,0.82709326]
[1641063948439,6.15,3757.7,3756.8,0.82709326]
[1641063948638,6.15,3757.7,3756.9,0.00454739]
[1641063948837,0.66546,3757.6,3756.9,0.00454739]
[1641063949039,0.66741567,3757.6,3756.9,0.00454739]
[1641063949886,1.33287567,3757.6,3756.9,0.00454739]
[1641063950290,3.41995041,3757.5,3756.9,0.00454739]
[1641063950488,0.01205289,3757.3,3756.9,0.00454739]
[1641063950690,0.01205289,3757.3,3756.3,0.03172229]
[1641063950691,0.39505289,3757.3,3756.4,0.00738951]
[1641063950891,0.06591743,3757.2,3756.4,0.00738951]
[1641063951089,0.76220153,3756.8,3756.4,0.00738951]
[1641063951292,0.76220153,3756.8,3755.5,0.2891]
[1641063951293,6.683,3756.7,3755.5,0.2891]
[1641063951491,1.3316,3756.4,3755.5,0.2891]
[1641063951689,1.3316,3756.4,3755.6,0.00454739]
[1641063951690,0.383,3756.4,3755.6,0.00454739]
[1641063951891,1.33169,3756.0,3755.6,0.00454739]
[1641063952089,0.66587,3755.9,3755.6,0.00454739]
[1641063952289,0.78027,3755.9,3755.6,0.00454739]
[1641063952492,0.665869,3755.7,3755.6,0.00454739]
[1641063953742,0.665869,3755.7,3755.5,0.24064739]
[1641063954142,0.66588,3755.8,3755.5,0.24064739]
[1641063954344,1.9975332,3756.0,3755.5,0.24064739]
[1641063954345,1.81528767,3756.0,3755.5,0.24064739]
[1641063954745,0.00170527,3755.9,3755.5,1.30300804]
[1641063954944,0.00170527,3755.9,3755.5,0.24064739]
[1641063955144,0.00113685,3755.8,3755.5,0.24064739]
[1641063955546,0.00511581,3756.5,3755.5,0.24064739]
[1641063955745,1.36118013,3756.4,3755.5,0.24064739]
[1641063955946,1.36572752,3756.4,3755.5,1.32003819]
[1641063956150,1.36572752,3756.4,3755.6,0.3]
[1641063956151,0.00397897,3756.3,3755.6,0.3]
[1641063956350,1.3651591,3756.3,3755.6,0.3]
[1641063956548,0.00341054,3756.2,3755.6,0.3]
[1641063956982,0.00284212,3756.1,3755.6,0.3]
[1641063957185,0.00284212,3756.1,3755.2,0.3]
[1641063957382,0.0022737,3756.0,3755.2,0.3]
[1641063957582,0.0022737,3756.0,3755.3,0.00170527]
[1641063957787,0.00170527,3755.9,3755.3,0.30170527]
[1641063957987,0.00170527,3755.9,3755.3,0.3]
[1641063958188,0.00113685,3755.8,3755.4,0.00113684]
[1641063958590,0.00397897,3756.3,3755.4,0.00113684]
[1641063958992,0.00341054,3756.2,3755.4,0.00113684]
[1641063959290,0.00284212,3756.1,3755.4,0.00113684]
[1641063959788,0.0022737,3756.0,3755.4,0.00113684]
[1641063960190,0.00170527,3755.9,3755.4,0.00113684]
[1641063960644,0.00113685,3755.8,3755.4,0.00113684]
[1641063961047,0.00284212,3756.1,3755.4,0.00113684]
[1641063961352,0.0022737,3756.0,3755.4,0.00113684]
[1641063961744,0.00170527,3755.9,3755.4,0.00113684]
[1641063962145,0.00113685,3755.8,3755.4,0.00113684]
[1641063962547,0.00284212,3756.1,3755.4,0.00113684]
[1641063962946,0.0022737,3756.0,3755.4,0.00113684]
[1641063963348,0.00170527,3755.9,3755.4,0.00113684]
[1641063963749,0.00113685,3755.8,3755.4,0.00113684]
[1641063964147,0.00284212,3756.1,3755.4,15.82813121]
[1641063964379,0.00284212,3756.1,3755.9,0.940495]
[1641063964579,0.0022737,3756.0,3755.9,0.940495]
[1641063964980,0.0022737,3756.0,3755.9,1.27222061]
[1641063965180,0.0022737,3756.0,3755.9,4.01295246]
[1641063965385,0.0022737,3756.0,3755.9,6.51295246]
[1641063965585,0.0022737,3756.0,3755.9,7.51295246]
[1641063966184,0.0022737,3756.0,3755.9,3.71295246]
[1641063966384,0.0022737,3756.0,3755.9,4.01295246]
[1641063967586,0.0022737,3756.0,3755.9,5.01295246]
[1641063967990,0.0022737,3756.0,3755.9,4.01295246]
[1641063968241,0.0022737,3756.0,3755.9,1.57222061]
[1641063968542,0.0022737,3756.0,3755.9,3.90018909]
[1641063968942,0.0022737,3756.0,3755.9,1.57222061]
[1641063969341,0.0022737,3756.0,3755.9,4.62222061]
[1641063970055,0.00407605,3756.0,3755.9,4.62222061]
[1641063971046,0.00407605,3756.0,3755.9,6.94200788]
[1641063971983,0.00407605,3756.0,3755.9,4.62222061]
[1641063972481,0.00407605,3756.0,3755.9,1.57222061]
[1641063972681,0.00407605,3756.0,3755.9,4.99187368]
[1641063972882,0.00407605,3756.0,3755.9,3.99187368]
[1641063973085,0.00407605,3756.0,3755.9,2.57222061]
[1641063973686,0.00407605,3756.0,3755.9,4.90748168]
[1641063973885,0.00407605,3756.0,3755.9,4.95871639]
[1641063974086,0.00407605,3756.0,3755.9,2.57222061]
[1641063974292,0.00407605,3756.0,3755.9,7.40378621]
[1641063974688,0.00407605,3756.0,3755.9,4.90378621]
[1641063974888,0.00407605,3756.0,3755.9,2.57222061]
[1641063977441,0.00407605,3756.0,3755.9,4.9346059]
[1641063992639,0.00407605,3756.0,3755.9,2.57222061]
[1641063992840,0.00407605,3756.0,3755.9,4.89954909]
[1641063994793,0.00407605,3756.0,3755.9,2.57222061]
[1641063994991,0.00180235,3756.0,3755.9,2.57222061]
[1641063995395,0.00180235,3756.0,3755.9,4.89820461]
[1641063996394,0.00180235,3756.0,3755.9,2.57222061]
[1641063996897,0.00180235,3756.0,3755.9,21.94775941]
[1641063997298,0.00180235,3756.0,3755.9,19.22071061]
[1641063997696,0.05750799,3756.8,3756.3,1.33067]
[1641063997896,0.05750799,3756.8,3756.5,15.6]
[1641063998154,0.00625266,3756.7,3756.6,22.5636563]
[1641063998347,0.00625266,3756.7,3756.6,23.8636563]
[1641063998548,0.00625266,3756.7,3756.6,18.6136563]
[1641063999349,0.00625266,3756.7,3756.6,18.84057985]
[1641063999547,0.00625266,3756.7,3756.6,18.87229964]
[1641063999952,0.00625266,3756.7,3756.6,18.64537609]
[1641064001650,0.00625266,3756.7,3756.6,18.87229925]
[1641064001883,0.00625266,3756.7,3756.6,3.27229925]
[1641064002286,0.00625266,3756.7,3756.6,5.60264321]
[1641064002889,0.00625266,3756.7,3756.6,5.37572005]
[1641064005296,0.00625266,3756.7,3756.6,3.04537609]
[1641064006844,0.00625266,3756.7,3756.6,2.38004979]
[1641064007045,0.00625266,3756.7,3756.6,1.38004979]
[1641064007246,0.00625266,3756.7,3756.6,2.38004979]
[1641064008447,0.00625266,3756.7,3756.6,1.38004979]
[1641064008647,0.00625266,3756.7,3756.6,2.38004979]
[1641064008846,0.00625266,3756.7,3756.6,1.71471979]
[1641064009047,0.00625266,3756.7,3756.6,0.41471979]
[1641064009247,0.00625266,3756.7,3756.6,0.03171979]
[1641064010399,1.04997527,3756.7,3756.6,0.03171979]
[1641064010598,1.15317527,3756.7,3756.6,0.03171979]
[1641064010794,1.15157527,3756.7,3756.6,0.03171979]
[1641064010994,1.14997527,3756.7,3756.6,0.03171979]
[1641064011196,1.04997527,3756.7,3756.6,0.03171979]
[1641064011404,1.15077527,3756.7,3756.6,0.03171979]
[1641064011802,1.15317527,3756.7,3756.6,0.03171979]
[1641064012002,1.15157527,3756.7,3756.6,0.03171979]
[1641064012202,1.15077527,3756.7,3756.6,0.03171979]
[1641064012503,1.15157527,3756.7,3756.6,0.03171979]
[1641064012904,1.14997527,3756.7,3756.6,0.03171979]
[1641064013557,1.04997527,3756.7,3756.6,0.03171979]
[1641064013959,1.14997527,3756.7,3756.6,0.03171979]
[1641064014157,1.04997527,3756.7,3756.6,0.03171979]
[1641064015161,1.14997527,3756.7,3756.6,0.03171979]
[1641064015461,1.14917527,3756.7,3756.6,0.03171979]
[1641064015660,1.15317527,3756.7,3756.6,0.03171979]
[1641064015860,1.15397527,3756.7,3756.6,0.03171979]
[1641064017086,1.15317527,3756.7,3756.6,0.03171979]
[1641064017491,1.15397527,3756.7,3756.6,0.03171979]
[1641064018190,1.15477527,3756.7,3756.6,0.03171979]
[1641064018392,1.15397527,3756.7,3756.6,0.03171979]
[1641064018591,1.15477527,3756.7,3756.6,0.03171979]
[1641064018995,1.15557527,3756.7,3756.6,0.03171979]
[1641064019195,1.15317527,3756.7,3756.6,0.03171979]
[1641064019394,2.5151554,3756.7,3756.6,0.03171979]
[1641064019593,2.5143554,3756.7,3756.6,0.03171979]
[1641064019795,1.15237527,3756.7,3756.6,0.03171979]
[1641064019993,1.15157527,3756.7,3756.6,0.03171979]
[1641064020194,0.10785266,3756.7,3756.6,0.03171979]
[1641064020393,0.10625266,3756.7,3756.6,0.03171979]
[1641064020645,0.00625266,3756.7,3756.6,0.03171979]
[1641064021148,1.36743279,3756.7,3756.6,0.03171979]
[1641064021745,0.00625266,3756.7,3756.6,0.03171979]
[1641064026990,0.00794332,3756.7,3756.6,0.03171979]
[1641064027992,0.00169066,3756.7,3756.6,0.03171979]
[1641064030646,0.00169066,3756.7,3756.6,4.23395077]
[1641064031050,0.00169066,3756.7,3756.6,1.38395077]
[1641064031548,0.04806257,3757.5,3756.6,1.38395077]
[1641064031987,0.01023163,3757.4,3756.7,0.66546]
[1641064032188,0.01023163,3757.4,3756.7,1.66546]
[1641064032389,0.0096632,3757.3,3756.7,1.66546]
[1641064032788,0.00909478,3757.2,3756.7,0.66546]
[1641064033193,0.00852636,3757.1,3756.7,0.66546]
[1641064033596,0.00795793,3757.0,3756.7,0.66546]
[1641064033995,0.00738951,3756.9,3756.7,0.66546]
[1641064034393,0.00682109,3756.8,3756.7,0.66546]
[1641064034996,0.00682109,3756.8,3756.6,2.04941077]
[1641064035396,0.00625266,3756.7,3756.6,1.38395077]
[1641064037349,0.00775547,3756.7,3756.6,1.38395077]
[1641064042000,0.00775547,3756.7,3756.6,2.38395077]
[1641064042202,0.00775547,3756.7,3756.6,1.68395077]
[1641064042402,0.00775547,3756.7,3756.6,3.70040009]
[1641064043002,0.00775547,3756.7,3756.6,4.00040009]
[1641064043256,0.00775547,3756.7,3756.6,1.68395077]
[1641064048691,0.00775547,3756.7,3756.6,4.01673718]
[1641064048893,0.00775547,3756.7,3756.6,4.00647774]
[1641064049095,0.00775547,3756.7,3756.6,3.99976266]
[1641064049491,0.00775547,3756.7,3756.6,21.31358266]
[1641064049691,0.00775547,3756.7,3756.6,22.31358266]
[1641064050493,0.00775547,3756.7,3756.6,22.5405217]
[1641064052343,0.00775547,3756.7,3756.6,22.31358266]
[1641064052945,0.00775547,3756.7,3756.6,5.11358266]
[1641064053143,0.00775547,3756.7,3756.6,2.79777077]
[1641064054148,0.00775547,3756.7,3756.6,5.43082988]
[1641064054392,0.00775547,3756.7,3756.6,6.73082988]
[1641064054690,0.00775547,3756.7,3756.6,6.71658345]
[1641064054889,0.00775547,3756.7,3756.6,4.39777077]
[1641064055490,0.00775547,3756.7,3756.6,22.32474546]
[1641064056290,0.00775547,3756.7,3756.6,6.72474546]
[1641064056491,0.00775547,3756.7,3756.6,3.06695077]
[1641064058855,0.00775547,3756.7,3756.6,2.06695077]
[1641064060659,0.00775547,3756.7,3756.6,3.06695077]
[1641064060859,0.00775547,3756.7,3756.6,2.06695077]
[1641064061660,0.00775547,3756.7,3756.6,3.06695077]
[1641064062307,0.00775547,3756.7,3756.6,1.01471979]
[1641064062511,0.00775547,3756.7,3756.6,0.63171979]
[1641064062912,0.00775547,3756.7,3756.6,0.33171979]
[1641064063114,0.00775547,3756.7,3756.6,0.03171979]
[1641064065844,0.00150281,3756.7,3756.6,0.03171979]
[1641064077699,0.00150281,3756.7,3756.6,8.13515466]
[1641064078098,0.00150281,3756.7,3756.6,3.68515466]
[1641064078300,0.00150281,3756.7,3756.6,4.06815466]
[1641064080947,0.00150281,3756.7,3756.6,4.29509398]
[1641064081551,0.00150281,3756.7,3756.6,4.24509398]
[1641064081959,0.00150281,3756.7,3756.6,19.84509398]
[1641064083158,0.00150281,3756.7,3756.6,2.96337419]
[1641064084501,0.00150281,3756.7,3756.6,4.33643487]
[1641064085705,0.00150281,3756.7,3756.6,4.56337419]
[1641064086204,0.00150281,3756.7,3756.6,20.16337419]
[1641064087509,0.00150281,3756.7,3756.6,20.22127419]
[1641064088138,0.00150281,3756.7,3756.6,4.62127419]
[1641064088943,0.00150281,3756.7,3756.6,4.39433487]
[1641064092701,0.00150281,3756.7,3756.6,4.62127419]
[1641064093904,0.00150281,3756.7,3756.6,20.22127419]
[1641064094306,0.00150281,3756.7,3756.6,17.86783932]
[1641064095407,0.00150281,3756.7,3756.6,2.26783932]
[1641064095848,0.00150281,3756.7,3756.6,2.0409]
[1641064096048,0.00150281,3756.7,3756.6,6.6909]
[1641064096250,0.00150281,3756.7,3756.6,7.6909]
[1641064098455,0.00150281,3756.7,3756.6,23.2909]
[1641064099700,0.00150281,3756.7,3756.6,23.51783932]
[1641064100299,0.00150281,3756.7,3756.6,7.91783932]
[1641064100698,0.00150281,3756.7,3756.6,23.51783932]
[1641064101098,0.00150281,3756.7,3756.6,23.2909]
[1641064101699,0.00150281,3756.7,3756.6,23.51783932]
[1641064101899,0.00150281,3756.7,3756.6,7.91783932]
[1641064102101,0.00150281,3756.7,3756.6,2.26783932]
[1641064102302,0.00150281,3756.7,3756.6,0.88483932]
[1641064102501,0.00150281,3756.7,3756.6,0.28483932]
[1641064103140,0.00150281,3756.7,3756.6,0.0579]
[1641064103548,0.00150281,3756.7,3756.2,3.013]
[1641064103945,0.00568424,3756.6,3756.2,3.013]
[1641064104344,0.00511581,3756.5,3756.2,3.013]
[1641064104545,0.00511581,3756.5,3756.3,1.0]
[1641064104746,0.00454739,3756.4,3756.3,1.0]
[1641064104944,0.00454739,3756.4,3756.3,3.65]
[1641064105544,0.00454739,3756.4,3756.3,1.3]
[1641064109006,0.00600888,3756.4,3756.3,1.3]
[1641064112846,2.66841978,3756.9,3756.3,1.3]
[1641064113250,2.65734348,3756.9,3756.3,1.3]
[1641064113648,2.65734348,3756.9,3756.4,0.0022737]
[1641064114893,0.98363294,3757.0,3756.4,0.0022737]
[1641064115294,0.88021294,3757.0,3756.4,0.0022737]
[1641064115496,0.84299294,3757.0,3756.4,0.0022737]
[1641064116095,0.83781294,3757.0,3756.4,0.0022737]
[1641064118140,4.07756981,3757.1,3756.4,0.0022737]
[1641064118349,1.3311061,3757.1,3756.4,0.0022737]
[1641064118549,0.00113684,3757.0,3756.4,0.0022737]
[1641064119650,0.00248308,3757.0,3756.4,0.0022737]
[1641064119852,0.84894871,3757.0,3756.4,0.0022737]
[1641064120051,2.85398697,3756.9,3756.4,0.0022737]
[1641064120254,2.18011401,3757.0,3756.4,0.0022737]
[1641064121055,4.72459356,3756.9,3756.4,0.0022737]
[1641064121357,0.66561,3756.8,3756.4,0.0022737]
[1641064122197,0.66561,3756.8,3756.3,0.00284212]
[1641064122797,0.66561,3756.8,3756.2,0.3]
[1641064123098,0.66561,3756.8,3756.3,0.00284212]
[1641064123503,1.99685,3756.8,3756.3,0.00284212]
[1641064123904,1.99685,3756.8,3755.9,0.00511582]
[1641064124709,2.7270488,3756.7,3755.9,0.00511582]
[1641064124907,0.66566,3756.6,3755.9,0.00511582]
[1641064125755,4.05391039,3756.7,3755.9,0.00511582]
[1641064125956,1.331299,3756.7,3755.9,0.00511582]
[1641064126156,1.331299,3756.7,3755.6,1.00682109]
[1641064126457,1.05188696,3756.4,3755.7,0.00625266]
[1641064126858,4.058503,3756.3,3755.7,0.00625266]
[1641064127060,4.058503,3756.3,3755.4,0.00795793]
[1641064127061,0.112,3756.3,3755.4,0.00795793]
[1641064127257,1.05188696,3756.4,3755.4,0.00795793]
[1641064127258,0.1072,3756.2,3755.4,0.00795793]
[1641064127460,0.9685255,3755.6,3755.4,0.00795793]
[1641064127660,0.9685255,3755.6,3755.2,0.00909478]
[1641064127861,0.9685255,3755.6,3755.0,0.01023163]
[1641064128260,0.66588,3755.4,3755.0,0.01023163]
[1641064128462,1.1879377,3755.5,3755.0,0.01023163]
[1641064128662,0.1088,3755.3,3755.0,0.01023163]
[1641064128860,3.20705238,3755.3,3754.2,0.01477901]
[1641064129060,3.20705238,3755.3,3754.0,6.15]
[1641064129061,23.62757805,3754.3,3754.0,6.15]
[1641064129264,23.62757805,3754.3,3753.7,3.50821785]
[1641064129501,0.67887798,3754.1,3753.7,3.50821785]
[1641064129704,6.25,3753.9,3753.7,2.47829155]
[1641064129899,6.25,3753.8,3753.1,4.38527231]
[1641064130099,6.25,3753.8,3752.9,3.53802157]
[1641064130100,1.33264,3753.7,3752.9,3.53802157]
[1641064130299,1.58520681,3753.3,3753.2,0.00341054]
[1641064130506,3.98520681,3753.3,3753.2,0.00341054]
[1641064130704,0.77192,3753.3,3753.2,0.00341054]
[1641064130904,0.1024,3753.6,3753.2,0.00341054]
[1641064131105,1.36118013,3753.7,3753.2,0.00341054]
[1641064131307,2.02743013,3753.7,3752.4,0.00795793]
[1641064131503,2.02743013,3753.7,3752.1,0.0096632]
[1641064131703,2.94139914,3753.7,3752.2,0.91498983]
[1641064131903,2.27514914,3753.7,3752.2,0.91498983]
[1641064132102,2.27514914,3753.7,3752.3,0.00852635]
[1641064132307,0.91396901,3753.7,3752.3,0.00852635]
[1641064134550,3.45979663,3753.9,3752.3,0.00852635]
[1641064134749,2.0986165,3753.9,3752.3,0.00852635]
[1641064134953,2.73202331,3753.8,3752.3,0.00852635]
[1641064135152,2.1010165,3753.9,3752.3,0.00852635]
[1641064135350,2.7,3753.7,3752.3,0.00852635]
[1641064135752,2.7,3753.7,3752.3,1.81689645]
[1641064136150,2.7,3753.7,3752.4,15.60795793]
[1641064136351,2.7,3753.7,3752.5,17.42752983]
[1641064136550,2.7,3753.7,3752.5,17.73491933]
[1641064136750,2.7,3753.7,3752.6,1.00682108]
[1641064137003,2.7,3753.7,3752.7,0.383]
[1641064137203,2.7,3753.7,3752.7,0.38925266]
[1641064137404,2.7,3753.7,3752.7,0.68925266]
[1641064137706,2.7,3753.7,3752.8,0.00568423]
[1641064137907,0.1,3753.6,3752.8,0.00568423]
[1641064138206,2.7,3753.7,3752.4,0.00795793]
[1641064138408,0.94038612,3753.4,3752.4,0.00795793]
[1641064138606,0.94038612,3753.4,3752.2,0.00909477]
[1641064138807,0.94038612,3753.4,3752.4,0.00795793]
[1641064139009,0.94038612,3753.4,3752.2,0.00909477]
[1641064139413,3.71386673,3753.4,3752.2,0.00909477]
[1641064139711,5.11325179,3753.4,3752.2,0.00909477]
[1641064140112,5.05466373,3753.4,3752.2,0.00909477]
[1641064140315,2.30156625,3753.4,3752.2,0.00909477]
[1641064140513,2.30156625,3753.4,3752.1,0.0096632]
[1641064140747,5.06606052,3753.4,3752.0,0.01023162]
[1641064140947,0.00087927,3753.3,3752.0,0.01023162]
[1641064141353,0.00087927,3753.3,3752.0,0.31023162]
[1641064141551,0.00087927,3753.3,3752.0,1.61023162]
[1641064141752,0.00087927,3753.3,3752.1,0.0096632]
[1641064142554,2.74617389,3753.3,3752.1,0.0096632]
[1641064142758,0.00087927,3753.3,3752.1,0.0096632]
[1641064143254,0.90313477,3753.3,3752.1,0.0096632]
[1641064143856,2.75589185,3753.2,3752.1,0.0096632]
[1641064144253,0.90313477,3753.3,3752.1,0.0096632]
[1641064144707,2.75604926,3753.2,3752.1,0.0096632]
[1641064144907,0.90313477,3753.3,3752.1,0.0096632]
[1641064145508,0.00087927,3753.3,3752.1,0.0096632]
[1641064145712,0.00087927,3753.3,3752.1,16.2758092]
[1641064145908,0.00087927,3753.3,3752.1,0.0096632]
[1641064146111,0.00087927,3753.3,3752.2,0.00909477]
[1641064146310,0.00087927,3753.3,3752.1,0.0096632]
[1641064146514,0.00087927,3753.3,3752.1,1.59157245]
[1641064146910,0.00087927,3753.3,3752.2,0.00909477]
[1641064147316,0.00087927,3753.3,3752.1,0.0096632]
[1641064147816,0.00087927,3753.3,3752.4,0.91289511]
[1641064148015,0.00087927,3753.3,3752.4,1.51289511]
[1641064148259,0.00087927,3753.3,3752.5,0.0073895]
[1641064150856,0.00087927,3753.3,3752.5,0.3073895]
[1641064151056,0.00087927,3753.3,3752.2,1.00909477]
[1641064151359,0.00087927,3753.3,3752.5,0.97161556]
[1641064151555,0.00087927,3753.3,3752.5,1.57161556]
[1641064151757,2.7,3753.7,3752.6,0.00682108]
[1641064152195,2.7,3753.7,3752.6,1.00682108]
[1641064152593,2.7,3753.7,3752.7,0.00625266]
[1641064152994,2.7,3753.7,3753.1,1.2751945]
[1641064153402,2.7,3753.7,3753.2,0.383]
[1641064153597,2.7,3753.7,3753.2,1.94336628]
[1641064153796,2.65,3753.7,3753.3,0.00284212]
[1641064153998,2.65,3753.7,3753.3,0.68584212]
[1641064154197,2.65,3753.7,3753.3,1.68584212]
[1641064154399,2.65,3753.7,3753.4,0.00227369]
[1641064155946,2.65,3753.7,3753.4,0.30227369]
[1641064156144,2.65,3753.7,3753.4,0.00227369]
[1641064156345,2.65,3753.7,3753.5,0.00170527]
[1641064156545,2.65,3753.7,3753.4,0.00227369]
[1641064162210,0.00087042,3753.6,3753.4,0.00227369]
[1641064164357,0.00087042,3753.6,3753.2,0.3]
[1641064164556,0.00087042,3753.6,3753.3,0.00284212]
[1641064164961,0.00087042,3753.6,3752.9,0.00511581]
[1641064166364,1.8169649,3753.2,3752.9,0.00511581]
[1641064167403,1.8169649,3753.2,3752.9,0.30511581]
[1641064167605,1.3626729,3753.0,3752.9,0.30511581]
[1641064167906,1.3626729,3753.0,3752.9,0.3]
[1641064168104,1.3626729,3753.0,3752.8,0.683]
[1641064169709,1.8169649,3753.3,3752.8,0.683]
[1641064169909,1.8169649,3753.0,3752.8,0.683]
[1641064171753,1.8169649,3753.0,3752.8,16.283]
[1641064172155,1.35978189,3753.4,3752.9,5.0]
[1641064172353,1.35978189,3753.4,3752.9,1.3]
[1641064172553,1.35978189,3753.4,3753.0,0.00454739]
[1641064172754,0.00082307,3753.3,3753.0,0.00454739]
[1641064174163,1.36060496,3753.3,3752.9,0.00511581]
[1641064174806,1.36060496,3753.3,3752.8,0.00568423]
[1641064175004,1.35978189,3753.2,3752.8,0.30568423]
[1641064175204,1.35978189,3753.2,3752.8,1.30568423]
[1641064175403,1.35978189,3753.2,3752.9,0.00511581]
[1641064176008,0.00082307,3753.3,3752.9,0.00511581]
[1641064176409,0.00082307,3753.3,3752.9,1.30511581]
[1641064177010,0.00082307,3753.3,3752.9,1.97120581]
[1641064179452,0.00082307,3753.3,3752.9,1.30511581]
[1641064186759,0.00082307,3753.3,3752.9,0.00511581]
[1641064187175,0.6662973,3753.1,3752.9,0.00511581]
[1641064187362,1.33332307,3753.3,3752.1,0.0096632]
[1641064187363,0.66706307,3753.3,3752.1,0.0096632]
[1641064187561,0.76706307,3753.3,3752.1,0.0096632]
[1641064187763,0.10082307,3753.3,3752.1,0.0096632]
[1641064187962,0.1008,3753.2,3752.1,0.0096632]
[1641064188265,2.02610189,3752.9,3752.1,0.0096632]
[1641064188463,0.6663478,3752.7,3752.1,0.0096632]
[1641064188761,1.3326978,3752.7,3752.1,0.0096632]
[1641064189401,4.74885639,3752.7,3752.1,0.0096632]
[1641064189602,4.72221953,3752.7,3752.0,0.01023162]
[1641064190603,1.9990378,3752.7,3752.0,0.01023162]
[1641064191001,3.35881969,3752.7,3752.0,0.01023162]
[1641064191201,2.02612189,3752.7,3752.0,0.01023162]
[1641064191409,1.35978189,3752.7,3752.0,0.01023162]
[1641064191604,1.35978189,3752.7,3752.1,1.71537]
[1641064191805,1.35978189,3752.7,3752.1,17.91537]
[1641064192003,1.35978189,3752.7,3752.2,0.00909477]
[1641064192202,1.35978189,3752.7,3752.2,15.99209477]
[1641064192408,0.00082307,3753.3,3752.2,18.32438477]
[1641064192606,0.00082307,3753.3,3752.8,0.6661268]
[1641064193006,0.00082307,3753.3,3752.9,0.00511581]
[1641064193248,0.00082307,3753.3,3752.9,0.30511581]
[1641064193549,0.00082307,3753.3,3752.9,0.60511581]
[1641064193850,0.00082307,3753.3,3752.9,1.27122581]
[1641064194649,0.00082307,3753.3,3752.9,0.60511581]
[1641064195051,0.00082307,3753.3,3752.9,0.30511581]
[1641064197795,0.69646014,3753.3,3752.9,0.30511581]
[1641064198801,3.39646014,3753.3,3752.9,0.30511581]
[1641064199402,3.39646014,3753.3,3752.9,0.00511581]
[1641064199801,3.39646014,3753.3,3752.8,0.00568423]
[1641064209360,1.3325371,3753.2,3752.5,0.0073895]
[1641064209562,1.3325371,3753.2,3752.4,0.00795793]
[1641064209762,0.6663,3753.1,3752.4,0.00795793]
[1641064210165,0.6663,3753.1,3752.2,1.42741692]
[1641064210166,2.68798752,3753.0,3752.3,0.00852635]
[1641064210366,3.35428552,3753.0,3752.3,0.00852635]
[1641064210576,1.33259,3753.1,3752.3,0.00852635]
[1641064210766,3.39646014,3753.3,3752.3,0.00852635]
[1641064211566,3.39646014,3753.3,3752.3,0.67475635]
[1641064212012,3.39646014,3753.3,3752.5,1.6323521]
[1641064212212,3.39646014,3753.3,3752.5,0.96618]
[1641064212413,3.39646014,3753.3,3752.6,0.00682108]
[1641064213515,3.39646014,3753.3,3752.5,0.0073895]
[1641064213716,3.39646014,3753.3,3752.6,0.00682108]
[1641064213916,3.39646014,3753.3,3752.5,0.0073895]
[1641064214315,3.39646014,3753.3,3752.5,0.3073895]
[1641064214715,3.39646014,3753.3,3752.6,0.00682108]
[1641064214915,3.39646014,3753.3,3752.6,0.30682108]
[1641064215316,3.39646014,3753.3,3752.7,0.00625266]
[1641064222109,3.39646014,3753.3,3752.8,0.66615]
[1641064222511,3.39646014,3753.3,3752.9,0.30511581]
[1641064222710,2.70082307,3753.3,3753.0,0.383]
[1641064223152,2.70082307,3753.3,3753.1,0.00397896]
[1641064223358,2.70082307,3753.3,3753.2,6.633]
[1641064223563,2.70082307,3753.3,3753.2,8.69156538]
[1641064223757,2.70082307,3753.3,3753.2,8.69497592]
[1641064224157,2.70082307,3753.3,3753.2,24.29497592]
[1641064224759,2.70082307,3753.3,3753.2,24.96090592]
[1641064230308,2.70082307,3753.3,3753.2,3.11090592]
[1641064230510,2.70082307,3753.3,3753.2,2.81090592]
[1641064230763,2.70082307,3753.3,3753.2,0.76197592]
[1641064230964,2.7,3753.3,3753.2,0.76197592]
[1641064231663,2.7,3753.3,3753.2,1.42802592]
[1641064231862,2.7,3753.3,3753.2,2.02802592]
[1641064244209,2.7,3753.3,3753.2,17.62802592]
[1641064244709,2.7,3753.3,3753.2,18.62802592]
[1641064249166,2.7,3753.3,3753.2,3.02802592]
[1641064251601,2.70083495,3753.3,3753.2,3.02802592]
[1641064253759,2.70083495,3753.3,3753.2,3.02461538]
[1641064255058,2.70083495,3753.3,3753.1,0.6660428]
[1641064255059,2.70083495,3753.3,3753.0,1.9982]
[1641064255259,2.70083495,3753.3,3752.9,0.05708978]
[1641064255464,2.70083495,3753.3,3753.1,0.00397896]
[1641064269358,2.65083495,3753.3,3753.1,0.00397896]
[1641064272510,2.67672859,3753.2,3753.1,0.00397896]
[1641064272915,2.65083495,3753.3,3753.1,0.00397896]
[1641064273514,2.64412469,3753.3,3753.1,0.00397896]
[1641064274114,2.72225236,3753.2,3753.1,0.00397896]
[1641064274315,2.71847214,3753.2,3753.1,0.00397896]
[1641064274515,2.7699499,3753.2,3753.1,0.00397896]
[1641064274714,2.71574806,3753.2,3753.1,0.00397896]
[1641064275014,2.73760835,3753.2,3753.1,0.00397896]
[1641064275215,2.68123515,3753.2,3753.1,0.00397896]
[1641064275654,2.64412469,3753.3,3753.1,0.00397896]
[1641064276057,2.75180404,3753.2,3753.1,0.00397896]
[1641064277661,2.68930872,3753.2,3753.1,0.00397896]
[1641064277861,2.64412469,3753.3,3753.1,0.00397896]
[1641064279709,2.64412469,3753.3,3752.9,0.01106874]